bitfinex/quotes_ETHUSD_20241231
["timestamp","ask_amount","ask_price","bid_price","bid_amount"]
[1735616856911,0.38780434,3343.3,3342.8,0.7729]
[1735616857114,0.78248218,3343.3,3342.8,0.7729]
[1735616857726,0.78248218,3343.3,3342.8,3.76438]
[1735616858211,0.78248218,3343.3,3342.8,0.7729]
[1735616859516,0.78248218,3343.3,3342.8,1.149347]
[1735616859743,0.78248218,3343.3,3342.9,2.9914]
[1735616859943,0.78248218,3343.3,3342.9,3.8176]
[1735616860132,0.78248218,3343.3,3343.0,0.8262]
[1735616861451,0.38780434,3343.3,3343.0,0.8262]
[1735616862528,3.78248218,3343.7,3343.0,0.8262]
[1735616862743,0.78248218,3343.6,3343.0,0.8262]
[1735616863156,0.78248218,3343.6,3343.1,2.99122]
[1735616863333,2.48907137,3344.0,3343.4,0.8262]
[1735616863530,2.48907137,3344.0,3342.8,2.72649989]
[1735616863731,2.48907137,3344.0,3343.6,2.9907]
[1735616863939,2.48907137,3344.0,3343.8,0.8262]
[1735616864358,2.48907137,3344.0,3343.9,3.81672]
[1735616864555,2.48907137,3344.7,3344.4,0.8262]
[1735616865658,3.0,3345.2,3344.4,0.8262]
[1735616868347,3.0,3345.2,3344.4,1.207854]
[1735616871726,3.0,3345.2,3344.4,0.8262]
[1735616873823,3.0,3345.2,3344.4,0.5762]
[1735616881244,1.51058218,3344.9,3344.4,0.5762]
[1735616881610,0.78248218,3344.9,3344.4,0.5762]
[1735616884822,0.39467784,3344.9,3344.4,0.5762]
[1735616885021,0.7281,3345.1,3344.4,0.5762]
[1735616886557,0.39467784,3345.2,3344.6,0.766]
[1735616886860,3.0,3345.5,3344.6,3.75587]
[1735616887066,3.78248218,3345.5,3344.6,3.75587]
[1735616887556,0.78248218,3345.5,3344.6,0.766]
[1735616887760,0.39467784,3346.0,3345.0,0.7985]
[1735616887960,0.78248218,3346.0,3345.0,0.7985]
[1735616888165,0.78248218,3346.0,3344.7,0.7985]
[1735616888166,3.0,3345.8,3344.7,0.7985]
[1735616888461,0.78248218,3345.7,3344.8,2.98969]
[1735616888659,0.78248218,3345.7,3344.9,0.7985]
[1735616895364,0.55,3345.5,3344.9,0.7985]
[1735616895565,2.98944,3345.1,3344.5,0.7985]
[1735616895767,3.38411784,3345.1,3344.5,0.7985]
[1735616897501,6.44413989,3345.0,3344.5,0.7985]
[1735616897767,4.01230221,3344.9,3344.5,0.7985]
[1735616897977,4.40698005,3344.9,3344.5,0.7985]
[1735616898162,3.0,3344.8,3343.9,0.7985]
[1735616898327,2.98981,3344.7,3343.9,0.7985]
[1735616898532,3.38448784,3344.7,3343.9,0.7985]
[1735616898759,0.77949544,3344.6,3343.9,0.7985]
[1735616899441,3.77949544,3344.6,3343.9,0.7985]
[1735616899743,2.99017,3344.3,3343.4,0.7985]
[1735616900052,3.38484784,3344.3,3343.4,0.7985]
[1735616900365,0.39467784,3344.3,3343.4,0.7985]
[1735616900774,0.39467784,3344.3,3343.4,1.177451]
[1735616902882,3.0,3344.4,3343.5,0.7985]
[1735616904173,5.99009,3344.4,3343.5,0.7985]
[1735616904374,6.38476784,3344.4,3343.5,0.7985]
[1735616904582,9.49907207,3344.4,3343.5,0.7985]
[1735616904782,1.02785675,3344.3,3343.5,0.7985]
[1735616905139,6.50898207,3344.4,3343.5,0.7985]
[1735616905352,0.78248218,3344.4,3343.5,0.7985]
[1735616907885,3.77256218,3344.4,3343.5,0.7985]
[1735616908843,3.39467784,3344.3,3343.5,0.7985]
[1735616909044,2.99043,3344.0,3343.5,0.7985]
[1735616909268,0.299043,3343.9,3343.5,0.7985]
[1735616909885,0.39467784,3344.0,3343.5,0.7985]
[1735616911903,3.38780434,3344.3,3343.5,0.7985]
[1735616912264,3.78248218,3344.3,3343.5,0.7985]
[1735616912688,5.21557126,3344.7,3343.8,0.832]
[1735616912892,3.27155355,3344.7,3343.8,0.832]
[1735616913208,3.27155355,3344.7,3344.0,0.832]
[1735616913403,3.0,3344.6,3344.0,0.832]
[1735616913572,3.0,3344.6,3343.5,0.832]
[1735616913781,2.48907137,3345.0,3343.8,5.9906]
[1735616913958,2.48907137,3345.0,3344.2,2.99021]
[1735616914162,2.48907137,3345.0,3344.3,0.832]
[1735616915304,0.38780434,3345.2,3344.3,0.832]
[1735616916277,0.78248218,3345.2,3344.3,0.832]
[1735616919105,0.78248218,3345.2,3344.4,0.8315]
[1735616919309,3.71692,3345.8,3344.7,0.8315]
[1735616919483,6.26037355,3345.8,3344.8,0.8315]
[1735616919889,3.0,3345.7,3344.9,2.98961]
[1735616920180,2.87687571,3345.8,3345.3,0.8315]
[1735616920401,2.48907137,3345.8,3345.4,0.8315]
[1735616921091,2.87687571,3346.1,3345.4,0.8315]
[1735616921310,3.27155355,3346.1,3345.4,0.8315]
[1735616921680,3.0,3346.0,3345.4,0.8315]
[1735616922220,3.78248218,3346.0,3345.4,0.8315]
[1735616922817,0.78248218,3346.0,3345.4,0.8315]
[1735616923115,0.78248218,3345.9,3345.4,0.8315]
[1735616928254,0.39467784,3345.9,3345.4,1.213593]
[1735616928555,0.39467784,3345.9,3345.5,0.8315]
[1735616929133,0.38780434,3346.2,3345.5,0.8315]
[1735616931896,0.38780434,3346.2,3345.6,0.8315]
[1735616932184,0.39467784,3347.0,3346.0,0.8315]
[1735616932359,0.39467784,3347.0,3346.1,0.86138059]
[1735616932559,0.78248218,3347.0,3346.2,0.8315]
[1735616932760,0.39467784,3347.0,3346.2,0.8315]
[1735616932966,0.38780434,3346.9,3346.2,0.8315]
[1735616933285,0.39467784,3346.8,3346.2,0.8315]
[1735616933445,0.38780434,3346.7,3346.2,0.8315]
[1735616933647,0.39467784,3346.6,3346.2,0.8315]
[1735616934291,0.38780434,3346.7,3346.2,0.8315]
[1735616935764,0.78248218,3346.7,3346.2,0.8315]
[1735616935962,0.39467784,3346.6,3346.2,0.8315]
[1735616936377,0.39467784,3346.6,3346.2,1.863522]
[1735616936579,0.39467784,3346.6,3346.3,0.7616]
[1735616937197,3.37511434,3347.5,3346.4,6.5]
[1735616937376,3.75715885,3347.4,3346.5,0.7616]
[1735616937755,2.98765,3347.2,3346.5,0.7616]
[1735616937956,1.85973974,3347.1,3346.5,0.7616]
[1735616938154,2.9881,3346.7,3346.2,0.7616]
[1735616938353,0.38780434,3346.6,3346.2,0.7616]
[1735616938577,0.75715885,3346.6,3346.2,0.7616]
[1735616938889,0.75715885,3346.6,3345.9,0.7616]
[1735616938890,2.98843,3346.3,3345.9,0.7616]
[1735616939091,3.74533885,3346.6,3345.9,0.7616]
[1735616939432,0.44734389,3346.5,3345.9,0.7616]
[1735616939615,0.38780434,3346.4,3345.9,0.7616]
[1735616944046,2.98839,3346.3,3345.9,0.7616]
[1735616944198,0.38780434,3346.4,3345.7,0.7616]
[1735616944706,0.44734389,3346.5,3345.7,0.7616]
[1735616945324,6.37573434,3346.8,3345.7,0.37506]
[1735616945551,3.38780434,3346.8,3345.8,0.7616]
[1735616945952,2.98811,3346.6,3345.8,0.7616]
[1735616946308,3.37591434,3346.6,3345.8,0.7616]
[1735616948542,3.37601434,3346.5,3345.8,0.7616]
[1735616948715,2.98837,3346.4,3345.8,0.7616]
[1735616950423,0.38780434,3346.5,3345.8,0.7616]
[1735616954216,3.37557434,3347.0,3346.0,2.98862]
[1735616954451,0.38780434,3347.0,3346.2,0.8264]
[1735616954980,0.38780434,3347.0,3346.3,0.8264]
[1735616955179,3.38780434,3347.4,3346.4,0.8264]
[1735616955480,3.74455885,3347.4,3346.4,0.8264]
[1735616955650,3.74455885,3347.4,3346.6,0.8264]
[1735616956185,3.35685451,3347.3,3346.6,0.8264]
[1735616956380,0.38780434,3347.2,3346.6,0.8264]
[1735616956545,0.36935451,3347.1,3346.6,0.8264]
[1735616956747,3.37555434,3347.0,3346.6,0.8264]
[1735616957078,4.11939974,3347.0,3346.6,0.8264]
[1735616957988,3.35719451,3346.9,3346.1,0.8264]
[1735616958192,3.74499885,3346.9,3346.1,0.8264]
[1735616958394,0.75715885,3346.9,3346.1,0.8264]
[1735616960196,0.38780434,3346.9,3346.1,6.5]
[1735616960493,0.38780434,3346.9,3346.2,1.775262]
[1735616960696,0.38780434,3346.9,3346.2,0.8264]
[1735616960998,3.0,3346.7,3346.2,0.8264]
[1735616962667,6.22564344,3347.5,3346.2,0.8264]
[1735616962882,5.48907137,3347.4,3346.3,3.80479]
[1735616963058,5.48907137,3347.4,3346.5,0.8165]
[1735616963404,2.48907137,3347.3,3346.6,0.8165]
[1735616964284,3.71979302,3347.3,3346.6,0.8165]
[1735616964490,0.73230302,3347.2,3346.6,0.8165]
[1735616965716,2.98766,3347.1,3346.6,0.8165]
[1735616965860,3.71996302,3347.1,3346.6,0.8165]
[1735616966203,0.71745629,3347.0,3346.6,0.8165]
[1735616966398,3.7281,3346.8,3345.9,7.3165]
[1735616966604,3.0,3346.5,3345.9,6.5]
[1735616966756,3.0,3346.2,3345.9,6.5]
[1735616967161,3.0,3346.2,3345.7,0.8165]
[1735616967657,3.36294851,3346.7,3345.7,1.54815]
[1735616967876,3.0,3346.7,3345.8,0.8165]
[1735616968073,3.0,3346.7,3345.9,0.8165]
[1735616968278,5.48907137,3346.7,3345.9,0.8165]
[1735616969211,3.0,3346.7,3345.9,0.8165]
[1735616969449,3.0,3346.7,3346.0,1.103705]
[1735616971098,3.0,3346.7,3345.9,0.8165]
[1735616977147,3.0,3346.7,3345.9,6.5]
[1735616977442,3.0,3346.7,3346.0,0.8165]
[1735616978610,3.0,3346.6,3346.0,0.8165]
[1735616978815,2.98823,3346.5,3346.0,0.8165]
[1735616979011,0.36935451,3346.6,3346.0,0.8165]
[1735616979216,0.36935451,3346.6,3346.0,1.54815]
[1735616981547,0.36935451,3346.6,3346.0,0.8165]
[1735616981954,0.73230302,3346.6,3346.0,0.8165]
[1735616982271,2.98832,3346.4,3346.0,0.8165]
[1735616982751,4.44853302,3346.6,3346.0,0.8165]
[1735616983072,5.46563145,3346.6,3346.0,0.8165]
[1735616985348,2.47750145,3346.6,3346.0,0.8165]
[1735616985548,2.98836,3346.4,3346.0,0.8165]
[1735616985842,3.35771451,3346.4,3346.0,0.8165]
[1735616987542,0.36935451,3346.4,3346.0,0.8165]
[1735616987802,0.36935451,3346.4,3345.4,0.8073]
[1735616987803,1.89411179,3346.3,3345.4,0.8073]
[1735616987944,2.72649989,3346.2,3345.4,0.8073]
[1735616988111,2.9887,3346.0,3345.4,0.8073]
[1735616988896,0.73230302,3346.0,3345.4,0.8073]
[1735616989009,1.12473129,3345.9,3345.4,0.8073]
[1735616989358,4.12473129,3345.9,3345.4,0.8073]
[1735616990829,4.11347129,3345.9,3345.4,0.8073]
[1735616992252,2.9889,3345.8,3345.4,0.8073]
[1735616992428,2.98891,3345.7,3345.4,0.8073]
[1735616992631,3.43720958,3345.7,3345.4,0.8073]
[1735616993457,0.44829958,3345.7,3345.4,0.8073]
[1735616993662,4.4828258,3345.9,3345.4,0.8073]
[1735616995652,4.11347129,3345.9,3345.4,0.8073]
[1735616995872,0.36935451,3345.8,3345.4,0.8073]
[1735616996370,3.35820451,3345.8,3345.4,0.8073]
[1735616998006,0.36935451,3345.8,3345.4,0.8073]
[1735616998295,3.71707,3345.7,3345.0,0.8065]
[1735616998456,3.35832451,3345.7,3345.0,0.8065]
[1735616998664,4.48838493,3345.7,3345.0,0.8065]
[1735616999198,3.36935451,3345.6,3345.0,0.8065]
[1735617000477,0.36935451,3345.6,3345.0,0.8065]
[1735617002275,3.36935451,3345.6,3345.0,0.8065]
[1735617002957,3.35843451,3345.6,3345.0,0.8065]
[1735617003161,2.98919,3345.4,3345.0,0.8065]
[1735617003561,0.73230302,3345.3,3344.2,0.8065]
[1735617003761,3.0,3345.2,3344.2,0.8065]
[1735617003966,2.98977,3344.8,3344.2,0.8065]
[1735617004152,5.71635989,3344.7,3344.2,0.8065]
[1735617004348,0.68138144,3344.6,3344.2,0.8065]
[1735617004567,3.35907451,3344.8,3344.2,0.8065]
[1735617005149,0.36935451,3344.8,3344.2,0.8065]
[1735617005599,2.98991,3344.6,3344.2,0.8065]
[1735617005779,3.35907451,3344.8,3344.2,0.8065]
[1735617007009,2.98954,3345.0,3344.2,0.8065]
[1735617007889,0.36935451,3345.2,3344.3,0.8065]
[1735617008496,3.36935451,3345.2,3344.3,0.8065]
[1735617011398,0.36935451,3345.2,3344.4,0.8134]
[1735617011799,0.36935451,3345.2,3344.5,0.8134]
[1735617016668,3.36294851,3345.6,3344.6,0.8134]
[1735617016881,0.36294851,3345.6,3344.8,0.8134]
[1735617017063,0.36294851,3345.6,3345.0,0.8134]
[1735617018208,0.36935451,3345.5,3345.0,0.8134]
[1735617018415,0.73230302,3345.5,3345.0,0.8134]
[1735617018601,2.98927,3345.3,3344.1,6.5]
[1735617018806,3.35872451,3345.2,3344.3,0.8134]
[1735617018976,3.72167302,3345.2,3344.3,0.8134]
[1735617020415,0.36935451,3345.2,3344.3,0.8134]
[1735617021321,0.36935451,3345.2,3344.4,0.8134]
[1735617021520,0.36935451,3345.2,3344.6,0.8134]
[1735617021722,8.71551989,3345.6,3344.6,0.8134]
[1735617021888,9.0848744,3345.6,3344.6,0.8134]
[1735617022092,6.72132302,3345.6,3344.6,0.8134]
[1735617023479,2.98909,3345.5,3344.6,0.8134]
[1735617023820,3.3613193,3345.4,3344.6,0.8134]
[1735617024117,4.09362232,3345.4,3344.6,0.8134]
[1735617026611,0.36935451,3345.3,3344.6,0.8134]
[1735617027183,0.36294851,3345.2,3344.6,0.8134]
[1735617027387,0.36935451,3345.1,3344.6,0.8134]
[1735617027794,0.36294851,3345.2,3344.6,0.8134]
[1735617027997,0.77232174,3345.2,3344.6,0.8134]
[1735617028326,1.09745451,3345.1,3344.6,0.8134]
[1735617028530,2.98971,3344.9,3344.6,0.8134]
[1735617029099,3.35881451,3345.1,3344.6,0.8134]
[1735617030829,2.98954,3345.0,3344.6,0.8134]
[1735617031123,0.41312162,3344.9,3344.6,0.8134]
[1735617031515,0.36935451,3345.1,3344.6,0.8134]
[1735617032224,2.48907137,3345.3,3344.6,0.8134]
[1735617032430,2.48907137,3345.4,3344.6,0.8134]
[1735617032735,2.48907137,3345.4,3344.7,0.758]
[1735617032889,0.73230302,3345.3,3344.7,0.758]
[1735617033227,3.72159302,3345.3,3344.7,0.758]
[1735617033390,1.26652643,3345.2,3344.7,0.758]
[1735617033591,1.26652643,3345.2,3344.2,2.99023]
[1735617033592,2.98946,3345.1,3344.5,0.758]
[1735617033790,3.35881451,3345.1,3344.5,0.758]
[1735617035393,0.36935451,3345.1,3344.5,0.758]
[1735617039531,2.98938,3345.2,3344.6,0.758]
[1735617040521,5.47845137,3345.2,3344.6,0.758]
[1735617041351,2.98938,3345.2,3344.6,0.758]
[1735617041706,3.35873451,3345.2,3344.6,0.758]
[1735617041911,0.36935451,3345.1,3344.6,0.758]
[1735617042123,1.60156387,3345.1,3344.6,0.758]
[1735617042429,2.98966,3344.9,3344.6,0.758]
[1735617045536,2.98972,3344.8,3344.6,0.758]
[1735617045696,2.98972,3344.8,3344.0,0.8048]
[1735617045902,3.35907451,3344.8,3344.0,0.8048]
[1735617046102,4.44886487,3344.8,3344.0,0.8048]
[1735617047602,4.45914487,3344.8,3344.0,0.8048]
[1735617047845,3.35915451,3344.7,3344.0,0.8048]
[1735617048028,0.36935451,3344.7,3344.0,0.8048]
[1735617048229,2.98989,3344.6,3344.0,0.8048]
[1735617048430,2.99017,3344.3,3344.0,0.8048]
[1735617048813,5.12670986,3344.5,3344.0,0.8048]
[1735617049018,8.11670986,3344.5,3344.0,0.8048]
[1735617049426,10.60578123,3344.5,3344.0,0.8048]
[1735617049843,2.48907137,3344.5,3344.0,0.8048]
[1735617050332,2.69261238,3345.1,3344.0,0.8048]
[1735617050532,0.73230302,3345.0,3344.0,0.8048]
[1735617050829,3.0,3344.9,3344.1,0.8048]
[1735617051551,0.73230302,3344.9,3344.1,0.8048]
[1735617051841,1.8245894,3344.8,3344.1,0.8048]
[1735617052169,0.73230302,3344.8,3344.1,0.8048]
[1735617052755,3.24657454,3344.8,3344.1,0.8048]
[1735617053272,2.9898,3344.7,3344.1,0.8048]
[1735617053478,3.24657454,3344.8,3344.1,0.8048]
[1735617053607,6.23630454,3344.8,3344.1,0.8048]
[1735617053806,7.94289986,3344.8,3344.1,0.8048]
[1735617055209,6.23630454,3344.8,3344.1,0.8048]
[1735617055645,3.24657454,3344.8,3344.1,0.8048]
[1735617056571,0.73230302,3344.8,3344.1,0.8048]
[1735617060474,2.51427152,3344.9,3344.2,0.8048]
[1735617060629,2.51427152,3344.9,3344.3,0.8048]
[1735617060825,2.51427152,3344.9,3344.5,2.98997]
[1735617061026,2.51427152,3344.9,3344.7,0.8048]
[1735617061563,3.1428394,3345.1,3344.7,0.8048]
[1735617061725,3.36935451,3345.3,3344.7,0.8048]
[1735617061930,0.36935451,3345.2,3344.7,0.8048]
[1735617062129,0.73230302,3345.2,3344.7,0.8048]
[1735617064051,0.73230302,3345.2,3344.7,0.4093857]
[1735617064301,0.36935451,3345.2,3344.8,0.8048]
[1735617073065,0.73230302,3345.2,3344.8,0.8048]
[1735617075087,0.55,3345.1,3344.1,0.8261]
[1735617075254,3.90887451,3345.1,3344.1,0.8261]
[1735617075455,0.87993229,3345.0,3344.1,0.8261]
[1735617075775,3.87993229,3345.0,3344.1,0.8261]
[1735617075990,4.2492868,3345.0,3344.1,0.8261]
[1735617076695,4.2388168,3345.0,3344.1,0.8261]
[1735617077097,6.75308832,3345.0,3344.1,0.8261]
[1735617079293,2.98973,3344.8,3344.1,0.8261]
[1735617079500,0.36935451,3344.7,3344.1,0.8261]
[1735617081099,3.36935451,3344.7,3344.1,0.8261]
[1735617083498,0.36935451,3344.7,3344.1,0.8261]
[1735617083697,2.98991,3344.6,3344.1,0.8261]
[1735617083998,0.6601636,3344.5,3344.1,0.8261]
[1735617084496,0.55,3344.4,3343.5,6.5]
[1735617084675,2.99016,3344.3,3343.6,0.8101]
[1735617085203,0.55,3344.2,3343.6,0.8101]
[1735617085499,2.99044,3344.0,3343.2,0.8101]
[1735617086877,4.88499025,3344.0,3343.2,0.8101]
[1735617087083,1.88499025,3344.0,3343.2,0.8101]
[1735617087341,1.88499025,3344.0,3343.4,0.8101]
[1735617087619,1.88499025,3344.0,3343.0,6.5]
[1735617087620,1.88499025,3344.0,3343.6,0.8101]
[1735617087823,4.88499025,3344.3,3343.7,0.8101]
[1735617088698,1.88499025,3344.5,3343.8,0.8101]
[1735617088896,1.88499025,3344.5,3343.9,0.8101]
[1735617089111,1.88499025,3344.5,3344.1,0.8101]
[1735617089284,1.88499025,3344.5,3344.2,2.99022]
[1735617089485,1.88499025,3344.5,3344.3,0.8101]
[1735617089826,1.88499025,3344.9,3344.3,0.8101]
[1735617090697,2.88362603,3345.1,3344.3,0.8101]
[1735617090698,3.36935451,3345.1,3344.3,0.8101]
[1735617091022,0.36935451,3345.1,3344.5,0.8101]
[1735617091424,0.36294851,3345.0,3344.5,0.8101]
[1735617091620,0.36935451,3344.9,3344.5,0.8101]
[1735617093102,1.88499025,3345.1,3344.5,0.8101]
[1735617093287,1.88499025,3345.1,3344.6,0.8101]
[1735617094751,0.36935451,3345.2,3344.6,0.8101]
[1735617096039,1.88499025,3345.5,3344.7,0.8101]
[1735617096196,1.88499025,3345.5,3345.0,0.8101]
[1735617096399,1.88499025,3345.5,3345.2,0.8101]
[1735617097302,1.88499025,3345.9,3345.2,0.8101]
[1735617097503,2.25434476,3345.9,3345.2,0.8101]
[1735617098439,0.36935451,3345.9,3345.2,0.8101]
[1735617098653,0.36935451,3345.9,3345.3,0.7645]
[1735617099113,1.88499025,3346.0,3345.3,0.7943877]
[1735617099313,1.88499025,3346.0,3345.4,0.7645]
[1735617099513,1.88499025,3346.0,3345.4,2.98914]
[1735617099714,2.51427152,3346.2,3345.4,2.98914]
[1735617099715,1.88499025,3346.2,3345.5,0.7645]
[1735617099941,1.88499025,3346.2,3345.6,0.7645]
[1735617101237,0.73230302,3346.3,3345.6,0.7645]
[1735617103121,0.73230302,3346.2,3345.6,0.7645]
[1735617106090,3.72077302,3346.2,3345.6,0.7645]
[1735617106372,0.6720773,3346.1,3345.6,0.7645]
[1735617106570,2.98917,3345.4,3345.3,0.8295]
[1735617106739,6.44797291,3345.4,3345.0,0.8295]
[1735617107065,0.36935451,3345.3,3345.0,0.8295]
[1735617107466,1.0869618,3345.3,3344.4,0.8295]
[1735617107674,2.98965,3344.9,3344.4,0.8295]
[1735617108367,3.71782,3344.8,3344.0,0.8295]
[1735617108581,4.08717451,3344.8,3344.0,0.8295]
[1735617110371,1.09745451,3344.8,3344.0,0.8295]
[1735617110541,0.36935451,3344.8,3344.0,0.8295]
[1735617110880,1.88499025,3345.2,3344.3,0.8295]
[1735617111088,5.31428643,3345.2,3344.3,0.8295]
[1735617111288,1.88499025,3345.2,3344.3,0.8295]
[1735617111445,1.88499025,3345.2,3344.3,3.81963]
[1735617112186,3.34539327,3345.6,3344.5,3.81945]
[1735617112394,6.34539327,3345.6,3344.6,0.02989543]
[1735617112554,6.34539327,3345.6,3344.7,0.38493454]
[1735617113157,4.46040302,3345.6,3344.7,0.38493454]
[1735617115198,3.72142302,3345.5,3344.5,0.8295]
[1735617116708,2.72649989,3345.4,3344.5,0.8295]
[1735617116875,2.98936,3345.2,3344.5,0.8295]
[1735617118309,0.73230302,3345.3,3344.5,0.8295]
[1735617118463,0.55,3345.5,3344.5,0.8295]
[1735617118665,3.5391,3345.5,3344.6,0.7754]
[1735617118887,4.88499025,3345.6,3344.6,0.7754]
[1735617119665,0.36935451,3345.7,3344.7,0.7754]
[1735617119966,0.36935451,3345.7,3344.9,0.7754]
[1735617120290,0.36935451,3345.7,3345.1,0.7754]
[1735617120787,1.88499025,3345.9,3345.1,0.7754]
[1735617121364,1.88499025,3346.1,3345.1,0.80528824]
[1735617122064,1.88499025,3346.1,3345.4,0.7754]
[1735617122824,0.36935451,3346.3,3345.4,0.7754]
[1735617123104,0.73230302,3346.3,3345.5,0.376463]
[1735617126387,3.36935451,3346.2,3345.4,0.7754]
[1735617126579,6.72077302,3346.2,3345.4,0.7754]
[1735617128920,3.73230302,3346.2,3345.4,0.7754]
[1735617129221,0.73230302,3346.2,3345.4,0.7754]
[1735617129381,0.36935451,3346.2,3345.2,0.7737]
[1735617129718,5.72649989,3346.6,3345.7,0.7737]
[1735617129917,3.0958544,3346.6,3345.7,0.7737]
[1735617130523,6.0958544,3346.6,3345.7,0.7737]
[1735617130826,0.36935451,3346.5,3345.7,0.7737]
[1735617131028,0.73230302,3346.5,3345.7,0.7737]
[1735617132436,0.73230302,3346.5,3345.7,1.799985]
[1735617134782,3.72050302,3346.5,3345.7,1.799985]
[1735617135348,3.72050302,3346.5,3345.7,0.7737]
[1735617135349,3.0,3346.4,3345.7,0.7737]
[1735617135551,3.36935451,3346.4,3345.7,0.7737]
[1735617135693,6.35768451,3346.4,3345.7,0.7737]
[1735617136446,0.36935451,3346.3,3345.7,0.7737]
[1735617136789,1.68266683,3346.3,3345.7,0.7737]
[1735617138450,0.36935451,3346.3,3345.7,0.7737]
[1735617140003,0.36294851,3346.4,3345.7,0.7737]
[1735617143742,0.73230302,3346.4,3345.7,0.7737]
[1735617145423,2.72649989,3346.3,3345.7,0.7737]
[1735617145610,5.98877,3345.9,3345.2,0.7747]
[1735617145807,3.0,3345.9,3345.2,0.7747]
[1735617146452,3.0,3345.6,3345.2,0.7747]
[1735617146750,3.0,3345.9,3345.2,0.7747]
[1735617147941,5.98874,3345.9,3345.2,0.7747]
[1735617148144,1.24012301,3345.8,3345.2,0.7747]
[1735617148529,1.60947752,3345.8,3345.2,0.7747]
[1735617148722,2.98911,3345.5,3345.2,0.7747]
[1735617148920,9.0847844,3345.7,3345.2,0.7747]
[1735617149356,3.0,3345.6,3345.2,0.7747]
[1735617149559,3.0,3345.5,3345.2,0.7747]
[1735617150335,3.0,3345.5,3344.6,0.7747]
[1735617150336,5.98909,3345.5,3344.6,0.7747]
[1735617150524,6.35844451,3345.5,3344.6,0.7747]
[1735617150722,7.5561438,3345.5,3344.6,0.7747]
[1735617152118,3.36935451,3345.5,3344.6,0.7747]
[1735617153060,1.88499025,3345.8,3345.1,2.98944]
[1735617153460,1.88499025,3345.8,3345.3,0.7747]
[1735617154337,0.36935451,3346.0,3345.3,0.7747]
[1735617154531,0.33693545,3345.9,3345.3,0.7747]
[1735617154763,0.36935451,3345.8,3345.3,0.7747]
[1735617154972,3.36935451,3345.8,3345.3,0.7747]
[1735617155134,0.36935451,3345.8,3345.3,0.7747]
[1735617155338,3.36935451,3345.8,3345.3,0.7747]
[1735617155571,4.60911937,3345.8,3345.3,0.7747]
[1735617156144,1.60911937,3345.8,3345.3,0.7747]
[1735617156345,3.0,3345.7,3345.3,0.7747]
[1735617156674,3.35836451,3345.6,3345.3,0.7747]
[1735617157559,3.0,3345.5,3345.3,0.7747]
[1735617157766,0.90848644,3345.4,3345.3,0.7747]
[1735617159374,3.0,3345.5,3345.3,0.7747]
[1735617160376,5.25434476,3345.6,3345.3,0.7747]
[1735617161050,3.36935451,3345.6,3345.3,0.7747]
[1735617163301,0.36935451,3345.6,3345.3,0.7747]
[1735617164456,1.88499025,3345.8,3345.3,0.7747]
[1735617165366,3.0,3345.9,3345.3,0.7747]
[1735617168406,4.88499025,3345.9,3345.3,0.7747]
[1735617169595,5.25434476,3345.9,3345.3,0.7747]
[1735617171186,1.88499025,3345.8,3345.3,0.7747]
[1735617175242,5.25434476,3345.9,3345.3,0.7747]
[1735617179017,2.25434476,3345.9,3345.3,0.7747]
[1735617179218,1.88499025,3345.9,3345.5,2.98906]
[1735617179407,1.88499025,3345.9,3345.6,0.8022]
[1735617180215,3.0,3346.0,3345.6,0.8022]
[1735617180388,3.0,3346.0,3345.7,0.379126]
[1735617181310,3.36294851,3346.2,3345.7,0.379126]
[1735617181678,3.36294851,3346.2,3345.6,0.8022]
[1735617182396,5.24793876,3346.2,3345.6,0.8022]
[1735617183533,3.36294851,3346.2,3345.6,0.8022]
[1735617188324,4.88499025,3346.2,3345.6,0.8022]
[1735617189229,3.0,3346.2,3345.6,0.8022]
[1735617190328,3.0,3346.2,3345.6,1.93397]
[1735617192728,1.88499025,3346.3,3345.7,0.8213]
[1735617192929,4.88499025,3346.3,3345.8,0.8213]
[1735617193932,3.0,3346.3,3345.8,0.8213]
[1735617194091,4.29077257,3346.3,3345.8,0.8213]
[1735617197743,6.17576282,3346.3,3345.8,0.8213]
[1735617198036,3.17576282,3346.3,3345.8,0.8213]
[1735617199238,4.18963556,3346.3,3345.8,0.8213]
[1735617200548,1.88499025,3346.2,3345.8,0.8213]
[1735617201039,1.29077257,3346.1,3345.8,0.8213]
[1735617202470,4.27933257,3346.1,3345.8,0.8213]
[1735617202603,1.29077257,3345.9,3345.5,0.7763]
[1735617203428,2.02307559,3346.1,3345.5,0.7763]
[1735617203615,4.87347025,3346.2,3345.5,0.7763]
[1735617203616,1.88499025,3346.2,3345.5,0.7763]
[1735617203832,1.88499025,3346.1,3345.6,2.98898]
[1735617204000,1.88499025,3346.1,3345.7,0.298898]
[1735617204206,1.88499025,3346.1,3345.8,0.7538]
[1735617204972,1.88499025,3346.4,3345.8,0.7538]
[1735617205319,1.88499025,3346.4,3345.9,0.7538]
[1735617205524,1.88499025,3346.4,3346.1,0.7538]
[1735617205742,1.88499025,3346.4,3346.3,3.74217]
[1735617206109,3.1428394,3346.7,3346.4,0.7538]
[1735617206110,1.88499025,3346.5,3346.4,0.7538]
[1735617206663,1.88499025,3346.5,3346.4,3.74208]
[1735617207366,1.88499025,3346.5,3346.4,10.24208]
[1735617207662,1.88499025,3346.5,3346.4,11.565138]
[1735617207962,4.88499025,3347.2,3346.5,0.7538]
[1735617208460,1.88499025,3347.2,3346.5,0.7538]
[1735617208622,1.88499025,3347.2,3346.6,0.7538]
[1735617208821,1.88499025,3347.2,3346.7,0.7538]
[1735617209236,4.88499025,3347.4,3346.7,0.7538]
[1735617210223,1.88499025,3347.4,3346.7,0.7538]
[1735617210425,1.88499025,3347.5,3346.8,3.74171]
[1735617210659,1.88499025,3347.5,3347.0,0.7538]
[1735617210868,1.88499025,3347.5,3347.1,0.374163]
[1735617211158,1.88499025,3347.5,3347.2,0.7538]
[1735617211530,4.88499025,3347.9,3347.2,0.7538]
[1735617211720,0.36294851,3347.7,3347.2,0.7538]
[1735617211919,3.73230302,3347.7,3347.2,0.7538]